bitfinex/quotes_BTCUSD_20250114
["timestamp","ask_amount","ask_price","bid_price","bid_amount"]
[1736821309133,30.00014603,95376.0,95373.0,0.003]
[1736821309555,30.00014603,95376.0,95373.0,0.002]
[1736821309556,0.39170384,95375.0,95373.0,0.002]
[1736821309765,0.1,95374.0,95373.0,0.002]
[1736821309990,0.209709,95370.0,95369.0,0.40778057]
[1736821310282,0.15,95374.0,95369.0,0.44855863]
[1736821310442,0.341598,95375.0,95370.0,0.18593744]
[1736821310648,0.551297,95375.0,95370.0,0.18593744]
[1736821310865,0.2097,95374.0,95371.0,0.2324218]
[1736821311088,0.2097,95374.0,95372.0,0.2324218]
[1736821311773,0.209705,95372.0,95369.0,0.00178668]
[1736821311990,0.41941,95372.0,95369.0,0.00178668]
[1736821312635,0.209705,95372.0,95370.0,0.001]
[1736821312843,0.209705,95372.0,95369.0,0.00178668]
[1736821313074,0.459709,95370.0,95369.0,0.18796055]
[1736821313519,0.459709,95370.0,95369.0,0.00178668]
[1736821313946,0.56951284,95370.0,95369.0,0.00178668]
[1736821314797,0.459709,95370.0,95369.0,0.00178668]
[1736821315237,0.460709,95370.0,95369.0,0.00178668]
[1736821315421,0.464709,95370.0,95369.0,0.00178668]
[1736821318374,0.364709,95370.0,95369.0,0.00178668]
[1736821318785,0.464709,95370.0,95369.0,0.00178668]
[1736821318999,0.57451284,95370.0,95369.0,0.00178668]
[1736821319414,0.464709,95370.0,95369.0,0.00178668]
[1736821320110,0.364709,95370.0,95369.0,0.00178668]
[1736821320363,0.005,95370.0,95369.0,0.00178668]
[1736821321263,0.004,95370.0,95369.0,0.00178668]
[1736821321487,0.005,95370.0,95369.0,0.00178668]
[1736821321965,0.001,95370.0,95369.0,0.00178668]
[1736821322174,0.209698,95375.0,95369.0,0.00178668]
[1736821322413,0.209709,95370.0,95369.0,0.00178668]
[1736821323360,0.209698,95375.0,95369.0,0.00178668]
[1736821323804,0.004,95370.0,95369.0,0.00178668]
[1736821324268,0.004,95370.0,95369.0,0.02293725]
[1736821324967,30.00014603,95376.0,95370.0,0.209709]
[1736821325187,30.00014603,95376.0,95371.0,0.209705]
[1736821325459,0.006,95375.0,95371.0,0.209705]
[1736821325675,30.00014603,95376.0,95371.0,0.209705]
[1736821325894,30.00014603,95376.0,95372.0,0.03573291]
[1736821326081,30.00014603,95376.0,95374.0,0.023]
[1736821326297,30.00014603,95376.0,95375.0,0.232698]
[1736821326517,30.00014603,95376.0,95375.0,0.34250184]
[1736821326752,30.00014603,95376.0,95373.0,1.709702]
[1736821326972,30.00014603,95376.0,95372.0,0.209704]
[1736821327190,30.00014603,95376.0,95374.0,0.2097]
[1736821327399,30.00014603,95376.0,95375.0,0.66940384]
[1736821328026,30.00014603,95376.0,95375.0,0.5366]
[1736821328678,30.00014603,95376.0,95375.0,0.5376]
[1736821329610,30.00014603,95376.0,95375.0,0.5366]
[1736821329824,30.20984203,95376.0,95375.0,0.5366]
[1736821330042,30.20984203,95376.0,95375.0,0.001]
[1736821330727,30.00014603,95376.0,95375.0,0.001]
[1736821331419,30.00014603,95376.0,95371.0,0.209706]
[1736821331676,30.00014603,95376.0,95375.0,0.001]
[1736821332152,30.00214603,95376.0,95369.0,0.00178668]
[1736821332921,30.00214603,95376.0,95372.0,0.023]
[1736821333140,30.00214603,95376.0,95369.0,0.00178668]
[1736821333141,30.00014603,95376.0,95375.0,0.001]
[1736821333357,30.00014603,95376.0,95375.0,0.14533309]
[1736821333543,30.00014603,95376.0,95375.0,1.66833309]
[1736821333911,30.00214603,95376.0,95375.0,0.16833309]
[1736821334465,30.00214603,95376.0,95375.0,0.16733309]
[1736821334694,30.00214603,95376.0,95373.0,0.209702]
[1736821335146,30.00014603,95376.0,95375.0,0.209698]
[1736821335359,30.00014603,95376.0,95375.0,0.211698]
[1736821335565,30.00014603,95376.0,95375.0,0.212698]
[1736821336042,30.00014603,95376.0,95375.0,0.211698]
[1736821336258,30.00014603,95376.0,95375.0,0.25431687]
[1736821336685,30.00014603,95376.0,95375.0,0.38712071]
[1736821337123,30.00099683,95376.0,95375.0,0.38912071]
[1736821337795,30.00099683,95376.0,95375.0,0.92572071]
[1736821338005,30.00099683,95376.0,95375.0,0.92672071]
[1736821338439,30.00099683,95376.0,95375.0,0.92372071]
[1736821338680,30.00099683,95376.0,95375.0,0.92772071]
[1736821338890,30.00099683,95376.0,95375.0,0.93172071]
[1736821339105,30.00099683,95376.0,95375.0,0.92772071]
[1736821339551,30.00199683,95376.0,95375.0,0.93172071]
[1736821339765,30.00199683,95376.0,95375.0,0.92372071]
[1736821339983,30.00299683,95376.0,95375.0,1.03072071]
[1736821340413,30.00099683,95376.0,95375.0,0.92372071]
[1736821340643,29.86022558,95376.0,95375.0,1.19722071]
[1736821340936,29.38916247,95376.0,95375.0,1.14230184]
[1736821341183,28.46542917,95376.0,95375.0,3.75238784]
[1736821341417,26.95914187,95376.0,95375.0,5.88709584]
[1736821341629,26.95561607,95376.0,95375.0,5.89484972]
[1736821341821,26.95561607,95376.0,95375.0,5.90131554]
[1736821342089,25.41481607,95376.0,95375.0,5.90131554]
[1736821342305,24.66591607,95376.0,95375.0,4.77317754]
[1736821342553,24.66591607,95376.0,95375.0,4.59345254]
[1736821342800,24.66491607,95376.0,95375.0,2.94008354]
[1736821342984,24.61810807,95376.0,95375.0,4.11958354]
[1736821343239,24.61810807,95376.0,95375.0,4.11711772]
[1736821343669,24.60910807,95376.0,95375.0,4.11611772]
[1736821343857,24.60910807,95376.0,95375.0,3.82227572]
[1736821344108,24.61710807,95376.0,95375.0,3.91552184]
[1736821344336,24.60810807,95376.0,95375.0,3.81452184]
[1736821344551,24.60810807,95376.0,95375.0,3.91452184]
[1736821344801,24.61110807,95376.0,95375.0,3.81452184]
[1736821345019,24.61110807,95376.0,95375.0,3.91452184]
[1736821345236,24.60810807,95376.0,95375.0,5.13027484]
[1736821345456,24.60910807,95376.0,95375.0,5.03827484]
[1736821345673,24.60110807,95376.0,95375.0,5.04071856]
[1736821345909,24.61010807,95376.0,95375.0,2.86174556]
[1736821346131,24.60910807,95376.0,95375.0,2.80966556]
[1736821346378,24.60910807,95376.0,95375.0,2.80722184]
[1736821346602,24.60010807,95376.0,95375.0,2.82630184]
[1736821346826,24.60010807,95376.0,95375.0,1.17630184]
[1736821347009,24.60810807,95376.0,95375.0,1.17730184]
[1736821347260,24.60010807,95376.0,95375.0,1.17630184]
[1736821347477,24.60010807,95376.0,95375.0,2.67630184]
[1736821347696,24.60310807,95376.0,95375.0,2.67630184]
[1736821348150,24.60010807,95376.0,95375.0,2.94930184]
[1736821348386,24.60010807,95376.0,95375.0,2.95230184]
[1736821348819,24.60110807,95376.0,95375.0,2.8696071]
[1736821349035,24.60110807,95376.0,95375.0,2.9596071]
[1736821349036,24.60010807,95376.0,95375.0,2.9596071]
[1736821349263,24.60010807,95376.0,95375.0,2.9646071]
[1736821349487,24.60110807,95376.0,95375.0,2.9716071]
[1736821349716,24.60110807,95376.0,95375.0,2.9646071]
[1736821349717,24.60010807,95376.0,95375.0,2.9646071]
[1736821350162,24.60110807,95376.0,95375.0,2.9716071]
[1736821350381,24.60010807,95376.0,95375.0,2.9646071]
[1736821350599,24.60110807,95376.0,95375.0,2.9646071]
[1736821351050,24.60110807,95376.0,95375.0,2.8646071]
[1736821351271,24.60110807,95376.0,95375.0,2.8665271]
[1736821351497,24.60110807,95376.0,95375.0,2.9665271]
[1736821351696,24.60110807,95376.0,95375.0,2.9715271]
[1736821352005,24.60010807,95376.0,95375.0,2.9435271]
[1736821352443,24.60210807,95376.0,95375.0,2.8565271]
[1736821352678,24.60110807,95376.0,95375.0,2.9725271]
[1736821352894,24.60010807,95376.0,95375.0,2.9665271]
[1736821353108,24.60110807,95376.0,95375.0,2.9735271]
[1736821353541,24.60110807,95376.0,95375.0,2.9666071]
[1736821353753,24.60010807,95376.0,95375.0,2.9596071]
[1736821354416,24.60010807,95376.0,95375.0,2.9646071]
[1736821354639,24.60010807,95376.0,95375.0,2.8646071]
[1736821354879,24.60010807,95376.0,95375.0,2.82630184]
[1736821355098,24.60110807,95376.0,95375.0,2.83330184]
[1736821355310,24.60210807,95376.0,95375.0,2.84030184]
[1736821355536,24.60210807,95376.0,95375.0,2.83330184]
[1736821355741,24.60110807,95376.0,95375.0,2.82630184]
[1736821355949,24.60310807,95376.0,95375.0,2.86230184]
[1736821356217,24.60210807,95376.0,95375.0,2.85530184]
[1736821356467,24.60310807,95376.0,95375.0,2.86230184]
[1736821356719,24.60110807,95376.0,95375.0,2.85530184]
[1736821357099,24.60210807,95376.0,95375.0,2.86230184]
[1736821357396,24.60110807,95376.0,95375.0,2.85630184]
[1736821357605,24.60110807,95376.0,95375.0,1.35630184]
[1736821357807,24.60110807,95376.0,95375.0,1.36030184]
[1736821358222,24.60110807,95376.0,95375.0,2.85630184]
[1736821358424,24.60110807,95376.0,95375.0,2.86030184]
[1736821359001,24.60010807,95376.0,95375.0,2.94930184]
[1736821359233,24.60010807,95376.0,95375.0,2.85630184]
[1736821359473,24.60110807,95376.0,95375.0,2.86030184]
[1736821359668,24.60110807,95376.0,95375.0,2.85330184]
[1736821359896,24.60210807,95376.0,95375.0,2.86030184]
[1736821360111,24.60110807,95376.0,95375.0,2.85330184]
[1736821360360,24.60110807,95376.0,95375.0,2.95330184]
[1736821360583,24.60110807,95376.0,95375.0,2.94930184]
[1736821360810,24.60110807,95376.0,95375.0,2.95109293]
[1736821361027,24.60110807,95376.0,95375.0,2.95509293]
[1736821361464,24.60210807,95376.0,95375.0,2.95809293]
[1736821361912,24.60210807,95376.0,95375.0,2.96409293]
[1736821362131,24.60010807,95376.0,95375.0,3.05709293]
[1736821362341,24.60010807,95376.0,95375.0,3.05109293]
[1736821362547,24.60110807,95376.0,95375.0,3.06509293]
[1736821362801,24.60110807,95376.0,95375.0,3.07201293]
[1736821363015,24.60110807,95376.0,95375.0,3.08170789]
[1736821363425,24.60010807,95376.0,95375.0,3.07470789]
[1736821363858,24.60010807,95376.0,95375.0,3.0754644]
[1736821364318,24.60110807,95376.0,95375.0,3.0834644]
[1736821364755,24.60198188,95376.0,95375.0,3.22995968]
[1736821365707,24.60198188,95376.0,95375.0,3.0904644]
[1736821366451,24.60198188,95376.0,95375.0,3.2010644]
[1736821370358,24.60198188,95376.0,95375.0,3.28693611]
[1736821370734,24.60198188,95376.0,95375.0,3.07633611]
[1736821371152,24.60198188,95376.0,95375.0,2.91941611]
[1736821371435,24.60198188,95376.0,95375.0,2.7335444]
[1736821371840,24.60198188,95376.0,95375.0,2.8835444]
[1736821372016,24.60198188,95376.0,95375.0,2.97578789]
[1736821372836,24.18393188,95376.0,95375.0,2.97578789]
[1736821373245,24.18393188,95376.0,95375.0,2.96609293]
[1736821374024,24.07908188,95376.0,95375.0,3.90596093]
[1736821374291,22.82280087,95376.0,95375.0,3.90913742]
[1736821374425,22.82280087,95376.0,95375.0,3.91297239]
[1736821374426,22.72422812,95376.0,95375.0,3.91297239]
[1736821374625,22.72422812,95376.0,95375.0,3.68987839]
[1736821374996,22.72422812,95376.0,95375.0,3.43331789]
[1736821375195,22.70325812,95376.0,95375.0,3.43331789]
[1736821375559,22.66131812,95376.0,95375.0,3.43331789]
[1736821375949,22.66131812,95376.0,95375.0,3.41912089]
[1736821376152,22.66131812,95376.0,95375.0,2.96474689]
[1736821376376,0.0474,95404.0,95375.0,2.96474689]
[1736821376377,0.87833676,95545.0,95375.0,2.96474689]
[1736821376588,0.1,95440.0,95411.0,0.6866]
[1736821376789,0.419143,95433.0,95413.0,0.15]
[1736821377124,0.10980384,95439.0,95414.0,0.209612]
[1736821377327,0.1,95436.0,95414.0,0.209612]
[1736821377960,0.10014603,95436.0,95414.0,0.209612]
[1736821378417,0.10814603,95436.0,95414.0,0.210612]
[1736821378611,0.21114603,95436.0,95414.0,0.210612]
[1736821378873,0.01114603,95436.0,95414.0,0.001]
[1736821379056,0.01114603,95436.0,95422.0,0.209594]
[1736821379483,0.1273,95435.0,95424.0,0.5366]
[1736821379693,0.0785,95434.0,95425.0,0.5366]
[1736821380580,0.01114603,95436.0,95416.0,0.3304]
[1736821380581,0.1,95424.0,95416.0,0.3304]
[1736821380791,0.0785,95417.0,95409.0,0.2023]
[1736821381008,0.07840761,95417.0,95409.0,0.2023]
[1736821381217,0.209608,95416.0,95409.0,0.2023]
[1736821381445,0.28821145,95417.0,95409.0,0.2023]
[1736821382570,0.004,95416.0,95409.0,0.2023]
[1736821383352,0.005,95416.0,95409.0,0.2023]
[1736821383969,0.004,95416.0,95409.0,0.2023]
[1736821384163,0.0048529,95416.0,95409.0,0.2023]
[1736821384370,0.0058529,95416.0,95409.0,0.2023]
[1736821384743,0.0048529,95416.0,95409.0,0.2023]
[1736821385170,0.0018529,95416.0,95409.0,0.2023]
[1736821385597,0.0018529,95416.0,95398.0,0.209645]
[1736821386023,0.0018529,95416.0,95395.0,0.2023]
[1736821386226,0.0048529,95416.0,95399.0,0.00636287]
[1736821386431,0.0038529,95416.0,95399.0,0.00636287]
[1736821386885,0.0048529,95416.0,95399.0,0.00636287]
[1736821387309,0.1,95412.0,95399.0,0.00636287]
[1736821387458,0.10980384,95411.0,95399.0,0.00636287]
[1736821387668,0.10980384,95411.0,95395.0,0.2023]
[1736821387873,0.2255,95410.0,95395.0,0.2023]
[1736821388087,0.23530384,95410.0,95396.0,0.00400202]
[1736821389134,0.23630384,95410.0,95396.0,0.00400202]
[1736821390787,0.23730384,95410.0,95396.0,0.00400202]
[1736821390984,0.23530384,95410.0,95396.0,0.00400202]
[1736821391204,0.1,95404.0,95396.0,0.00400202]
[1736821391404,0.10980384,95403.0,95391.0,0.0004]
[1736821392068,0.1265,95410.0,95391.0,0.0004]
[1736821392281,0.1275,95410.0,95392.0,0.00404247]
[1736821392478,0.12764595,95410.0,95392.0,0.00404247]
[1736821392689,0.12664595,95410.0,95392.0,0.00404247]
[1736821392917,0.10980384,95409.0,95392.0,0.00404247]
[1736821393129,0.00114595,95410.0,95405.0,0.209632]
[1736821393551,0.00114595,95410.0,95406.0,0.00406519]
[1736821393552,0.00014595,95410.0,95406.0,0.00406519]
[1736821393750,0.00014595,95410.0,95402.0,0.209637]
[1736821394141,0.00014595,95410.0,95404.0,0.209634]
[1736821394351,0.00014595,95410.0,95403.0,0.00406032]
[1736821394561,0.00014595,95410.0,95405.0,0.00406357]
[1736821394775,0.00014595,95410.0,95402.0,0.209637]
[1736821394776,0.00014595,95410.0,95406.0,0.2033]
[1736821395208,0.00014595,95410.0,95406.0,0.20636519]
[1736821396689,0.00014595,95410.0,95407.0,0.209628]
[1736821396888,0.00014595,95410.0,95406.0,0.20636519]
[1736821397106,0.00014595,95410.0,95408.0,0.00406843]
[1736821397301,0.00014595,95410.0,95407.0,0.00406681]
[1736821397503,0.00014595,95410.0,95409.0,0.00407006]
[1736821397746,0.00014595,95410.0,95408.0,0.00406843]
[1736821397965,0.00014595,95410.0,95409.0,0.00407006]
[1736821398184,0.00014595,95410.0,95409.0,0.21369306]
[1736821398400,0.00014595,95410.0,95409.0,0.209623]
[1736821398589,0.00014595,95410.0,95409.0,0.00407006]
[1736821398756,0.00014595,95410.0,95409.0,0.00607006]
[1736821398963,0.00114595,95410.0,95409.0,0.003]
[1736821399203,0.00114595,95410.0,95409.0,0.2043]
[1736821399375,0.00114595,95410.0,95409.0,0.20837006]
[1736821399594,0.00214595,95410.0,95409.0,0.20937006]
[1736821400045,0.00214595,95410.0,95409.0,0.20737006]
[1736821400187,0.00214595,95410.0,95409.0,0.20937006]
[1736821400741,0.00214595,95410.0,95409.0,0.20737006]
[1736821400938,0.00114595,95410.0,95409.0,0.20737006]
[1736821401174,0.00014595,95410.0,95409.0,0.20837006]
[1736821401350,0.00114595,95410.0,95409.0,0.20937006]
[1736821403734,0.00114595,95410.0,95409.0,0.00707006]
[1736821403867,0.00114595,95410.0,95409.0,0.00507006]
[1736821404083,0.00114595,95410.0,95409.0,0.00607006]
[1736821404715,0.00014595,95410.0,95409.0,0.00407006]
[1736821404921,0.00014595,95410.0,95409.0,0.00607006]
[1736821405145,0.00014595,95410.0,95409.0,0.001]
[1736821405395,0.00014595,95410.0,95409.0,0.00507006]
[1736821405578,0.00014595,95410.0,95409.0,0.002]
[1736821405810,0.00014595,95410.0,95409.0,0.00607006]
[1736821406025,0.00014595,95410.0,95409.0,0.002]
[1736821406465,0.00014595,95410.0,95409.0,0.0060593]
[1736821410488,0.00014595,95410.0,95409.0,0.0050593]
[1736821410925,0.00014595,95410.0,95409.0,0.0040593]
[1736821412057,0.00114595,95410.0,95409.0,0.0040593]
[1736821412269,0.00014595,95410.0,95409.0,0.0040593]
[1736821412693,0.00114595,95410.0,95409.0,0.0040593]
[1736821419330,0.58104979,95410.0,95409.0,0.0040593]
[1736821419532,0.58104979,95410.0,95409.0,0.00858749]
[1736821419748,0.55729015,95409.0,95408.0,0.00179046]
[1736821419976,0.66709399,95409.0,95408.0,0.00179046]
[1736821420417,0.09766715,95392.0,95377.0,0.209693]
[1736821420629,0.20747099,95392.0,95377.0,0.209693]
[1736821420856,0.30729315,95408.0,95392.0,0.209659]
[1736821421077,0.09766715,95402.0,95391.0,0.01279047]
[1736821421311,0.09766715,95402.0,95393.0,0.0123918]
[1736821421508,0.30482415,95403.0,95392.0,0.01239113]
[1736821421725,0.41462799,95403.0,95391.0,0.0004]
[1736821422177,0.209645,95399.0,95392.0,0.01239113]
[1736821422378,0.10980384,95398.0,95392.0,0.01239113]
[1736821422610,0.10980384,95398.0,95391.0,0.0004]
[1736821422787,0.20965,95397.0,95391.0,0.0004]
[1736821423028,0.10980384,95396.0,95391.0,0.0004]
[1736821423599,0.02131093,95399.0,95391.0,0.0004]
[1736821423861,0.02131093,95399.0,95393.0,0.209658]
[1736821424320,0.02131093,95399.0,95395.0,0.209654]
[1736821424824,0.02131093,95399.0,95396.0,0.01239379]
[1736821425227,0.02131093,95399.0,95391.0,0.0004]
[1736821425466,0.02131093,95399.0,95397.0,0.01239446]
[1736821425681,0.02131093,95399.0,95391.0,0.0004]
[1736821425804,0.02131093,95399.0,95398.0,0.01239512]
[1736821426016,0.02231093,95399.0,95391.0,0.0004]
[1736821426219,0.02231093,95399.0,95398.0,0.01239512]
[1736821426426,0.02131093,95399.0,95391.0,0.0004]
[1736821426631,0.02131093,95399.0,95398.0,0.01239512]
[1736821426856,0.02131093,95399.0,95392.0,0.209661]
[1736821427072,0.02131093,95399.0,95398.0,0.01239512]
[1736821427266,0.02131093,95399.0,95392.0,0.209661]
[1736821427463,0.02131093,95399.0,95398.0,0.01239512]
[1736821427666,0.02131093,95399.0,95393.0,0.2023]
[1736821427906,0.02231093,95399.0,95398.0,0.01239512]
[1736821428156,0.209625,95409.0,95394.0,0.411956]
[1736821428382,0.209625,95409.0,95398.0,0.01239512]
[1736821428593,0.209625,95409.0,95394.0,0.2023]
[1736821428594,0.001,95399.0,95394.0,0.2023]
[1736821429464,0.31945184,95398.0,95391.0,0.0004]
[1736821429650,0.31945184,95398.0,95393.0,0.001]
[1736821430097,0.31945184,95398.0,95391.0,0.0004]
[1736821430306,0.10980384,95398.0,95391.0,0.0004]
[1736821430511,0.02145238,95403.0,95394.0,0.001]
[1736821430725,0.13125622,95403.0,95394.0,0.001]
[1736821430956,0.13125622,95403.0,95391.0,0.0004]
[1736821431164,0.209639,95402.0,95391.0,0.0004]
[1736821431575,0.209639,95402.0,95395.0,0.00179067]
[1736821431807,0.209651,95397.0,95395.0,0.00179067]
[1736821432519,0.39455484,95397.0,95395.0,0.00179067]
[1736821432723,0.24187107,95396.0,95395.0,0.00179067]
[1736821432939,0.20980384,95396.0,95395.0,0.00179067]
[1736821433361,0.49999099,95396.0,95395.0,0.00179067]
[1736821433970,0.39999099,95396.0,95395.0,0.00179067]
[1736821434206,0.49999099,95396.0,95395.0,0.00179067]
[1736821434414,0.40480384,95396.0,95395.0,0.00179067]
[1736821434625,0.50199099,95396.0,95395.0,0.00179067]
[1736821434838,0.30680384,95396.0,95395.0,0.00179067]
[1736821435051,0.197,95396.0,95395.0,0.00179067]
[1736821435270,0.152,95396.0,95395.0,0.00179067]
[1736821435480,0.26780384,95396.0,95395.0,0.00179067]
[1736821435700,0.26180384,95396.0,95395.0,0.00179067]
[1736821435913,0.35499099,95396.0,95395.0,0.00179067]
[1736821436127,0.36299099,95396.0,95395.0,0.00179067]
[1736821436329,0.26780384,95396.0,95395.0,0.00179067]
[1736821436542,0.26180384,95396.0,95395.0,0.00179067]
[1736821436749,0.35699099,95396.0,95395.0,0.00179067]
[1736821436952,0.26280384,95396.0,95395.0,0.00179067]
[1736821437400,0.11280384,95396.0,95395.0,0.00179067]
[1736821437840,0.003,95396.0,95395.0,0.00179067]
[1736821438745,0.001,95396.0,95395.0,0.00179067]
[1736821438966,0.002,95396.0,95395.0,0.00179067]
[1736821439155,0.209647,95399.0,95395.0,0.00179067]
[1736821439368,0.001,95396.0,95395.0,0.00179067]
[1736821439579,0.003,95396.0,95395.0,0.00179067]
[1736821439822,0.209647,95399.0,95395.0,0.00179067]
[1736821440029,0.002,95396.0,95395.0,0.00179067]
[1736821441586,0.11180384,95396.0,95395.0,0.00179067]
[1736821441835,0.5973182,95396.0,95395.0,0.00179067]
[1736821442064,0.53289099,95396.0,95395.0,0.00179067]
[1736821442279,0.53089099,95396.0,95395.0,0.00179067]
[1736821442498,0.53289099,95396.0,95395.0,0.00179067]
[1736821442713,0.53089099,95396.0,95395.0,0.00179067]
[1736821443118,0.53689099,95396.0,95395.0,0.00179067]
[1736821443364,0.53889099,95396.0,95395.0,0.00179067]
[1736821447161,0.63611219,95396.0,95395.0,0.00179067]
[1736821447371,0.56189099,95396.0,95395.0,0.00179067]
[1736821447627,0.56220161,95396.0,95395.0,0.00179067]
[1736821447839,0.61020161,95396.0,95395.0,0.00179067]
[1736821448057,0.34518715,95376.0,95375.0,0.00179109]
[1736821448233,0.66468699,95376.0,95375.0,0.00179109]
[1736821448448,0.64539984,95376.0,95375.0,0.00179109]
[1736821448650,0.78858699,95376.0,95375.0,0.00179109]
[1736821449527,0.583649,95352.0,95345.0,0.00178689]
[1736821449742,0.55494915,95346.0,95345.0,0.00178689]
[1736821449984,0.66475299,95346.0,95345.0,0.00227406]
[1736821450998,0.66775299,95346.0,95345.0,0.00227406]
[1736821451425,0.66775299,95346.0,95321.0,0.3977]
[1736821451426,0.32256584,95346.0,95321.0,0.38697404]
[1736821451641,0.00348647,95346.0,95339.0,0.209776]
[1736821451870,0.00348647,95346.0,95345.0,0.01068647]
[1736821452082,0.00348647,95346.0,95344.0,0.0775]
[1736821452288,0.00948647,95346.0,95345.0,1.5]
[1736821452513,0.01248647,95346.0,95345.0,1.51068647]
[1736821452728,0.00348647,95346.0,95345.0,1.51068647]
[1736821452934,0.00148647,95346.0,95345.0,0.01068647]
[1736821453374,0.00048647,95346.0,95335.0,0.29209885]
[1736821453790,0.00048647,95346.0,95337.0,0.209782]
[1736821454212,0.00048647,95346.0,95339.0,0.209777]
[1736821454446,0.00048647,95346.0,95345.0,0.209764]
[1736821455121,0.00148647,95346.0,95345.0,0.209764]
[1736821455348,0.00048647,95346.0,95343.0,0.00481285]
[1736821455560,0.00048647,95346.0,95344.0,0.209766]
[1736821455793,0.00148647,95346.0,95344.0,0.209766]
[1736821456468,0.00048647,95346.0,95340.0,0.209775]
[1736821456895,0.00148647,95346.0,95340.0,0.209775]
[1736821457130,0.00148647,95346.0,95344.0,0.002]
[1736821457543,0.00148647,95346.0,95340.0,0.412075]
[1736821457673,0.00148647,95346.0,95345.0,0.00299804]
[1736821457910,0.00048647,95346.0,95340.0,0.2043]
[1736821458092,0.00048647,95346.0,95345.0,0.01085236]
[1736821458293,0.00148647,95346.0,95342.0,0.209769]
[1736821458496,0.00048647,95346.0,95345.0,0.01085236]
[1736821458698,0.00048647,95346.0,95342.0,0.419538]
[1736821458905,0.00148647,95346.0,95345.0,0.01085236]
[1736821459150,0.00048647,95346.0,95342.0,0.209769]
[1736821459357,0.00048647,95346.0,95345.0,0.01085236]
[1736821459586,0.00148647,95346.0,95345.0,0.209764]
[1736821459984,0.00048647,95346.0,95345.0,0.22061636]
[1736821460968,0.00048647,95346.0,95345.0,0.73720325]
[1736821461192,0.00048647,95346.0,95345.0,0.73920325]
[1736821461414,0.00148647,95346.0,95345.0,0.74220129]
[1736821461600,0.00148647,95346.0,95345.0,0.82210129]
[1736821462593,0.00048647,95346.0,95345.0,1.10490513]
[1736821462834,0.00148647,95346.0,95345.0,1.14850513]
[1736821463048,0.00048647,95346.0,95345.0,1.14850513]
[1736821463471,0.00048647,95346.0,95345.0,1.15050513]
[1736821463845,0.00048647,95346.0,95345.0,1.14850513]
[1736821464058,0.00048647,95346.0,95345.0,1.15350513]
[1736821464266,0.00048647,95346.0,95345.0,1.13050513]
[1736821464692,0.00048647,95346.0,95345.0,1.15350513]
[1736821464896,0.00048647,95346.0,95345.0,1.15950513]
[1736821465112,0.309641,95401.0,95382.0,0.209682]
[1736821465320,0.10980384,95400.0,95382.0,0.209682]
[1736821465545,0.1,95399.0,95384.0,0.209678]
[1736821465753,0.31945184,95398.0,95383.0,0.00291447]
[1736821466168,0.31945184,95398.0,95382.0,0.001]
[1736821466370,0.31945184,95398.0,95384.0,0.01077083]
[1736821466600,0.31945184,95398.0,95383.0,0.01077017]
[1736821466815,0.32445184,95398.0,95384.0,0.01077083]
[1736821467461,0.32645184,95398.0,95384.0,0.01077083]
[1736821467902,0.20965,95397.0,95384.0,0.01077083]
[1736821468110,0.10980384,95396.0,95384.0,0.22044783]
[1736821468757,0.10980384,95396.0,95384.0,0.01077083]
[1736821469172,0.10980384,95396.0,95385.0,0.00291007]
[1736821469610,0.11380384,95396.0,95381.0,0.209685]
[1736821469825,0.209654,95395.0,95380.0,0.2023]
[1736821470149,0.31945784,95395.0,95380.0,0.2023]
[1736821470359,0.31945784,95395.0,95381.0,0.22045384]
[1736821470569,0.10980384,95395.0,95381.0,0.22045384]
[1736821471889,0.10980384,95394.0,95381.0,0.22045384]
[1736821472099,0.10980384,95394.0,95381.0,0.01076884]
[1736821472333,0.209658,95393.0,95381.0,0.01076884]
[1736821472538,0.10980384,95392.0,95381.0,0.01076884]
[1736821472988,0.519326,95391.0,95381.0,0.01076884]
[1736821473217,0.10980384,95390.0,95381.0,0.01076884]
[1736821473457,0.10980384,95390.0,95380.0,0.2023]
[1736821473869,0.10980384,95390.0,95382.0,0.01072793]
[1736821474094,0.10980384,95390.0,95381.0,0.01072727]
[1736821474308,0.10980384,95390.0,95380.0,0.2023]
[1736821474480,0.10980384,95390.0,95383.0,0.0107286]
[1736821474699,0.10980384,95390.0,95380.0,0.2023]
[1736821474912,0.10980384,95390.0,95384.0,0.01072926]
[1736821475123,0.10980384,95390.0,95380.0,0.2023]
[1736821475363,0.209667,95389.0,95385.0,0.01072993]
[1736821475487,0.10980384,95388.0,95375.0,0.209697]
[1736821475705,0.10980384,95388.0,95386.0,0.01073059]
[1736821475928,0.10980384,95388.0,95375.0,0.209697]
[1736821476119,0.10980384,95388.0,95387.0,0.01073126]
[1736821476443,0.10980384,95388.0,95375.0,0.209697]
[1736821476638,0.11080384,95388.0,95375.0,0.209697]
[1736821477002,0.10980384,95388.0,95375.0,0.209697]
[1736821477197,0.11080384,95388.0,95376.0,0.01072394]
[1736821477922,0.11080384,95388.0,95377.0,0.209694]
[1736821478153,0.11080384,95388.0,95377.0,0.43007587]
[1736821478359,0.001,95388.0,95378.0,0.11315204]
[1736821478561,0.0008532,95395.0,95377.0,0.01068787]
[1736821478562,0.0008532,95395.0,95387.0,0.209672]
[1736821478762,0.11065704,95395.0,95388.0,0.209669]
[1736821478986,0.001,95388.0,95387.0,0.209672]
[1736821479166,0.11065704,95395.0,95387.0,0.209672]
[1736821480019,0.11265704,95395.0,95387.0,0.209672]
[1736821480236,0.001,95388.0,95383.0,0.209679]
[1736821480697,0.001,95388.0,95383.0,0.419359]
[1736821481226,0.11080384,95388.0,95374.0,0.21451185]
[1736821481431,0.10980384,95387.0,95374.0,0.209699]
[1736821481875,0.1,95386.0,95373.0,0.2023]
[1736821482071,0.10980384,95385.0,95373.0,0.2023]
[1736821482511,0.10980384,95385.0,95373.0,0.621702]
[1736821482965,0.001,95386.0,95373.0,0.2023]
[1736821483242,0.001,95386.0,95374.0,0.2097]
[1736821483475,0.001,95386.0,95380.0,0.209685]
[1736821485421,0.0120106,95393.0,95380.0,0.209685]
[1736821485714,0.10980384,95392.0,95380.0,0.209685]
[1736821485875,0.001,95386.0,95380.0,0.209685]
[1736821486088,0.10980384,95392.0,95381.0,0.01069019]
[1736821486402,0.001,95386.0,95380.0,0.209685]
[1736821486816,0.001,95386.0,95381.0,0.01069019]
[1736821487244,0.209675,95386.0,95381.0,0.01069019]
[1736821487455,0.209678,95384.0,95381.0,0.01069019]
[1736821487670,0.10980384,95385.0,95373.0,0.209702]
[1736821488493,0.10980384,95385.0,95374.0,0.01068996]
[1736821489360,0.003,95392.0,95374.0,0.01068996]
[1736821489496,0.10980384,95391.0,95382.0,0.209682]
[1736821490121,0.10980384,95391.0,95383.0,0.01069409]
[1736821490586,0.01193226,95394.0,95384.0,0.209678]